[Event "Titled Tuesday Blitz February 22 Early 2022"]
[White "Demin, Vladimir"]
[Black "Karabalis, Harilos"]
[WhiteFideId "4167457"]
[BlackFideId "4621808"]
[WhiteElo "2578"]
[BlackElo "2168"]
[Result "0-1"]
[Round "07"]
[TimeControl "180+1"]
[Date "2022.02.22"]
[WhiteClock "0:01:49"]
[BlackClock "0:02:09"]

1. d4 {[%clk 0:03:00]}  Nf6 {[%clk 0:02:58]} 2. g4 {[%clk 0:02:57]}  Nxg4 {[%clk 0:02:52]} 3. e4 {[%clk 0:02:57]}  d5 {[%clk 0:02:50]} 4. Be2 {[%clk 0:02:57]}  h5 {[%clk 0:02:26]} 5. h3 {[%clk 0:02:55]}  Nf6 {[%clk 0:02:23]} 6. e5 {[%clk 0:02:54]}  Ne4 {[%clk 0:02:22]} 7. Bxh5 {[%clk 0:02:49]}  e6 {[%clk 0:02:19]} 8. Bf3 {[%clk 0:02:47]}  Qh4 {[%clk 0:02:18]} 9. Be3 {[%clk 0:02:38]}  c5 {[%clk 0:02:15]} 10. c3 {[%clk 0:02:27]}  Nc6 {[%clk 0:02:13]} 11. Nd2 {[%clk 0:02:23]}  cxd4 {[%clk 0:02:13]} 12. cxd4 {[%clk 0:02:22]}  Bb4 {[%clk 0:02:13]} 13. Kf1 {[%clk 0:01:50]}  Bxd2 {[%clk 0:02:10]} 14. Bxd2 {[%clk 0:01:49]}  Qxf2# {[%clk 0:02:09]} 0-1


[Site "https://www.chess.com"]

[Event "Titled Tuesday Blitz February 22 Early 2022"]
[White "Dev, Shah"]
[Black "Aaditya Dhingra"]
[WhiteFideId "35019058"]
[BlackFideId "25678191"]
[WhiteElo "2098"]
[BlackElo "1789"]
[Result "1-0"]
[Round "07"]
[TimeControl "180+1"]
[Date "2022.02.22"]
[WhiteClock "0:00:09"]
[BlackClock "0:00:02"]

1. d4 {[%clk 0:02:56]}  Nf6 {[%clk 0:02:58]} 2. c4 {[%clk 0:02:56]}  c5 {[%clk 0:02:57]} 3. d5 {[%clk 0:02:57]}  e6 {[%clk 0:02:57]} 4. Nc3 {[%clk 0:02:56]}  exd5 {[%clk 0:02:56]} 5. cxd5 {[%clk 0:02:57]}  d6 {[%clk 0:02:56]} 6. Nf3 {[%clk 0:02:54]}  g6 {[%clk 0:02:56]} 7. h3 {[%clk 0:02:55]}  Bg7 {[%clk 0:02:56]} 8. e4 {[%clk 0:02:56]}  O-O {[%clk 0:02:56]} 9. Be3 {[%clk 0:02:56]}  Re8 {[%clk 0:02:51]} 10. Nd2 {[%clk 0:02:33]}  Nxe4 {[%clk 0:02:18]} 11. Ncxe4 {[%clk 0:02:34]}  f5 {[%clk 0:02:17]} 12. Bb5 {[%clk 0:02:34]}  Bd7 {[%clk 0:02:09]} 13. Nxd6 {[%clk 0:02:22]}  Bxb5 {[%clk 0:01:56]} 14. Nxb5 {[%clk 0:02:20]}  f4 {[%clk 0:01:48]} 15. O-O {[%clk 0:02:20]}  fxe3 {[%clk 0:01:46]} 16. fxe3 {[%clk 0:02:18]}  a6 {[%clk 0:01:35]} 17. Nc3 {[%clk 0:02:18]}  b5 {[%clk 0:01:34]} 18. Nf3 {[%clk 0:02:15]}  Rxe3 {[%clk 0:01:29]} 19. d6 {[%clk 0:02:12]}  Nd7 {[%clk 0:00:57]} 20. Nd5 {[%clk 0:01:59]}  Re8 {[%clk 0:00:45]} 21. Ne7+ {[%clk 0:01:57]}  Kh8 {[%clk 0:00:44]} 22. Qd5 {[%clk 0:01:33]}  Nf6 {[%clk 0:00:32]} 23. Qe6 {[%clk 0:01:22]}  Ra7 {[%clk 0:00:30]} 24. Ne5 {[%clk 0:01:10]}  Raxe7 {[%clk 0:00:20]} 25. dxe7 {[%clk 0:01:06]}  Qxe7 {[%clk 0:00:19]} 26. Qxe7 {[%clk 0:00:55]}  Rxe7 {[%clk 0:00:20]} 27. Rae1 {[%clk 0:00:55]}  Kg8 {[%clk 0:00:20]} 28. Nc6 {[%clk 0:00:54]}  Rc7 {[%clk 0:00:18]} 29. Ne7+ {[%clk 0:00:51]}  Kf7 {[%clk 0:00:18]} 30. Nd5 {[%clk 0:00:51]}  Rd7 {[%clk 0:00:18]} 31. Nxf6 {[%clk 0:00:51]}  Bxf6 {[%clk 0:00:18]} 32. Re2 {[%clk 0:00:52]}  Rd6 {[%clk 0:00:16]} 33. b3 {[%clk 0:00:50]}  Kg7 {[%clk 0:00:16]} 34. Rf3 {[%clk 0:00:47]}  a5 {[%clk 0:00:16]} 35. g4 {[%clk 0:00:44]}  h6 {[%clk 0:00:13]} 36. Kg2 {[%clk 0:00:42]}  c4 {[%clk 0:00:12]} 37. bxc4 {[%clk 0:00:41]}  bxc4 {[%clk 0:00:12]} 38. Rc2 {[%clk 0:00:35]}  c3 {[%clk 0:00:12]} 39. Rff2 {[%clk 0:00:36]}  Rd3 {[%clk 0:00:10]} 40. Rf3 {[%clk 0:00:30]}  Rd5 {[%clk 0:00:09]} 41. Kg3 {[%clk 0:00:25]}  Be5+ {[%clk 0:00:08]} 42. Kf2 {[%clk 0:00:26]}  Rd1 {[%clk 0:00:08]} 43. Ke2 {[%clk 0:00:24]}  Rd7 {[%clk 0:00:06]} 44. Re3 {[%clk 0:00:21]}  Bf6 {[%clk 0:00:06]} 45. Rd3 {[%clk 0:00:19]}  Re7+ {[%clk 0:00:06]} 46. Kf3 {[%clk 0:00:20]}  Kf7 {[%clk 0:00:04]} 47. Re2 {[%clk 0:00:16]}  Rc7 {[%clk 0:00:03]} 48. Rc2 {[%clk 0:00:15]}  Rb7 {[%clk 0:00:03]} 49. Rd5 {[%clk 0:00:12]}  Ke6 {[%clk 0:00:02]} 50. Rxa5 {[%clk 0:00:12]}  Bd4 {[%clk 0:00:02]} 51. Ke4 {[%clk 0:00:12]}  Rb2 {[%clk 0:00:03]} 52. Rxb2 {[%clk 0:00:11]}  cxb2 {[%clk 0:00:03]} 53. Rb5 {[%clk 0:00:11]}  Bc3 {[%clk 0:00:02]} 54. a4 {[%clk 0:00:09]}  Kd6 {[%clk 0:00:03]} 55. Kd3 {[%clk 0:00:09]}  Be5 {[%clk 0:00:02]} 56. Kc2 {[%clk 0:00:09]} 1-0


[Site "https://www.chess.com"]

[Event "Titled Tuesday Blitz February 22 Early 2022"]
[White "Djokic, Mihailo"]
[Black "Martin, Lewis"]
[WhiteFideId "976440"]
[BlackFideId "410551"]
[WhiteElo "2008"]
[BlackElo "2145"]
[Result "0-1"]
[Round "07"]
[TimeControl "180+1"]
[Date "2022.02.22"]
[WhiteClock "0:00:08"]
[BlackClock "0:00:05"]

1. e4 {[%clk 0:03:00]}  c5 {[%clk 0:02:59]} 2. Nf3 {[%clk 0:02:59]}  d6 {[%clk 0:02:59]} 3. d4 {[%clk 0:03:00]}  cxd4 {[%clk 0:02:59]} 4. Nxd4 {[%clk 0:03:00]}  Nf6 {[%clk 0:02:59]} 5. Nc3 {[%clk 0:03:00]}  a6 {[%clk 0:02:59]} 6. Rg1 {[%clk 0:03:00]}  e5 {[%clk 0:02:52]} 7. Nb3 {[%clk 0:02:57]}  Be6 {[%clk 0:02:47]} 8. g4 {[%clk 0:02:57]}  Nc6 {[%clk 0:02:43]} 9. g5 {[%clk 0:02:56]}  Nd7 {[%clk 0:02:42]} 10. Nd5 {[%clk 0:02:56]}  Nb6 {[%clk 0:02:30]} 11. Be3 {[%clk 0:02:54]}  Na4 {[%clk 0:02:24]} 12. Rb1 {[%clk 0:02:39]}  Rc8 {[%clk 0:02:20]} 13. c3 {[%clk 0:02:38]}  Be7 {[%clk 0:02:11]} 14. h4 {[%clk 0:02:37]}  O-O {[%clk 0:02:10]} 15. Be2 {[%clk 0:02:31]}  Nc5 {[%clk 0:02:02]} 16. Nxc5 {[%clk 0:02:19]}  dxc5 {[%clk 0:02:03]} 17. a4 {[%clk 0:01:56]}  Qa5 {[%clk 0:01:58]} 18. b4 {[%clk 0:01:53]}  cxb4 {[%clk 0:01:55]} 19. Nxe7+ {[%clk 0:01:53]}  Nxe7 {[%clk 0:01:54]} 20. cxb4 {[%clk 0:01:54]}  Qd8 {[%clk 0:01:49]} 21. Qxd8 {[%clk 0:01:51]}  Rfxd8 {[%clk 0:01:48]} 22. Bc5 {[%clk 0:01:43]}  Nc6 {[%clk 0:01:42]} 23. b5 {[%clk 0:01:40]}  Nd4 {[%clk 0:01:35]} 24. Bb6 {[%clk 0:01:36]}  Rd6 {[%clk 0:01:26]} 25. bxa6 {[%clk 0:01:36]}  bxa6 {[%clk 0:01:22]} 26. Bxd4 {[%clk 0:01:31]}  Rxd4 {[%clk 0:01:22]} 27. Bxa6 {[%clk 0:01:30]}  Rxe4+ {[%clk 0:01:21]} 28. Kd2 {[%clk 0:01:25]}  Rd8+ {[%clk 0:01:19]} 29. Kc3 {[%clk 0:01:24]}  Rxa4 {[%clk 0:01:16]} 30. Rgd1 {[%clk 0:01:13]}  Rf8 {[%clk 0:01:12]} 31. Bb7 {[%clk 0:00:51]}  Rxh4 {[%clk 0:01:11]} 32. Rb5 {[%clk 0:00:50]}  f6 {[%clk 0:00:50]} 33. gxf6 {[%clk 0:00:49]}  gxf6 {[%clk 0:00:51]} 34. Rd6 {[%clk 0:00:48]}  Bf5 {[%clk 0:00:46]} 35. Bd5+ {[%clk 0:00:44]}  Kg7 {[%clk 0:00:45]} 36. Rb7+ {[%clk 0:00:43]}  Kg6 {[%clk 0:00:44]} 37. Re7 {[%clk 0:00:43]}  Rf4 {[%clk 0:00:39]} 38. f3 {[%clk 0:00:39]}  Ra4 {[%clk 0:00:31]} 39. Rxe5 {[%clk 0:00:38]}  h5 {[%clk 0:00:20]} 40. Re1 {[%clk 0:00:33]}  h4 {[%clk 0:00:14]} 41. Rg1+ {[%clk 0:00:33]}  Kh5 {[%clk 0:00:14]} 42. Bb3 {[%clk 0:00:32]}  Rf4 {[%clk 0:00:13]} 43. Kb2 {[%clk 0:00:30]}  h3 {[%clk 0:00:12]} 44. Rd2 {[%clk 0:00:30]}  Rb8 {[%clk 0:00:11]} 45. Ka2 {[%clk 0:00:27]}  Ra8+ {[%clk 0:00:10]} 46. Kb2 {[%clk 0:00:27]}  Rb8 {[%clk 0:00:11]} 47. Ka2 {[%clk 0:00:28]}  Rfb4 {[%clk 0:00:09]} 48. Rb2 {[%clk 0:00:09]}  Rxb3 {[%clk 0:00:09]} 49. Rxb3 {[%clk 0:00:09]}  Be6 {[%clk 0:00:09]} 50. Rh1 {[%clk 0:00:07]}  Bxb3+ {[%clk 0:00:06]} 51. Kb2 {[%clk 0:00:07]}  Be6+ {[%clk 0:00:07]} 52. Kc3 {[%clk 0:00:08]}  Kh4 {[%clk 0:00:07]} 53. Kd4 {[%clk 0:00:08]}  Kg3 {[%clk 0:00:07]} 54. Ke3 {[%clk 0:00:09]}  Kg2 {[%clk 0:00:07]} 55. Re1 {[%clk 0:00:08]}  Rb2 {[%clk 0:00:06]} 56. Kf4 {[%clk 0:00:07]}  h2 {[%clk 0:00:06]} 57. Rxe6 {[%clk 0:00:07]}  h1=Q {[%clk 0:00:06]} 58. Rxf6 {[%clk 0:00:08]}  Qh4+ {[%clk 0:00:05]} 59. Kf5 {[%clk 0:00:08]}  Rb5+ {[%clk 0:00:05]} 60. Ke6 {[%clk 0:00:08]}  Rb6+ {[%clk 0:00:05]} 0-1


[Site "https://www.chess.com"]

[Event "Titled Tuesday Blitz February 22 Early 2022"]
[White "Do Nascimento,Christian Almeida"]
[Black "Todorovic, Bojan"]
[WhiteFideId "2143801"]
[BlackFideId "917087"]
[WhiteElo "2108"]
[BlackElo "2266"]
[Result "1-0"]
[Round "07"]
[TimeControl "180+1"]
[Date "2022.02.22"]
[WhiteClock "0:00:05"]
[BlackClock "0:00:03"]

1. d4 {[%clk 0:03:00]}  Nf6 {[%clk 0:02:58]} 2. Bg5 {[%clk 0:02:59]}  Ne4 {[%clk 0:02:56]} 3. Bf4 {[%clk 0:02:58]}  c5 {[%clk 0:02:54]} 4. f3 {[%clk 0:02:53]}  Nf6 {[%clk 0:02:52]} 5. dxc5 {[%clk 0:02:50]}  Qa5+ {[%clk 0:02:44]} 6. Nc3 {[%clk 0:02:49]}  Qxc5 {[%clk 0:02:44]} 7. e4 {[%clk 0:02:48]}  d6 {[%clk 0:02:43]} 8. Qd2 {[%clk 0:02:48]}  Nc6 {[%clk 0:02:32]} 9. Be3 {[%clk 0:02:39]}  Qa5 {[%clk 0:02:29]} 10. Bc4 {[%clk 0:02:39]}  Ne5 {[%clk 0:02:23]} 11. Bb3 {[%clk 0:02:36]}  Bd7 {[%clk 0:02:17]} 12. Nge2 {[%clk 0:02:36]}  g6 {[%clk 0:02:12]} 13. O-O-O {[%clk 0:02:35]}  Bg7 {[%clk 0:02:06]} 14. Kb1 {[%clk 0:02:27]}  O-O {[%clk 0:02:04]} 15. Nd5 {[%clk 0:02:18]}  Qd8 {[%clk 0:01:56]} 16. Nxf6+ {[%clk 0:02:00]}  Bxf6 {[%clk 0:01:55]} 17. Nc3 {[%clk 0:01:43]}  a5 {[%clk 0:01:44]} 18. Nd5 {[%clk 0:01:36]}  a4 {[%clk 0:01:41]} 19. Nxf6+ {[%clk 0:01:30]}  exf6 {[%clk 0:01:40]} 20. Bd5 {[%clk 0:01:30]}  Bc6 {[%clk 0:01:34]} 21. a3 {[%clk 0:01:22]}  Ra5 {[%clk 0:01:26]} 22. Ba2 {[%clk 0:01:04]}  d5 {[%clk 0:01:08]} 23. exd5 {[%clk 0:01:00]}  Bd7 {[%clk 0:01:06]} 24. c4 {[%clk 0:00:42]}  b6 {[%clk 0:00:45]} 25. Ka1 {[%clk 0:00:32]}  Re8 {[%clk 0:00:44]} 26. h4 {[%clk 0:00:28]}  h5 {[%clk 0:00:43]} 27. Bd4 {[%clk 0:00:20]}  Qc7 {[%clk 0:00:42]} 28. Rc1 {[%clk 0:00:19]}  Bf5 {[%clk 0:00:40]} 29. Rhe1 {[%clk 0:00:17]}  Rd8 {[%clk 0:00:38]} 30. Qe3 {[%clk 0:00:11]}  Rc5 {[%clk 0:00:30]} 31. Bxc5 {[%clk 0:00:10]}  bxc5 {[%clk 0:00:30]} 32. g4 {[%clk 0:00:10]}  hxg4 {[%clk 0:00:29]} 33. fxg4 {[%clk 0:00:10]}  Nxg4 {[%clk 0:00:29]} 34. Qe7 {[%clk 0:00:10]}  Qa5 {[%clk 0:00:25]} 35. Bb1 {[%clk 0:00:10]}  Bxb1 {[%clk 0:00:21]} 36. Rxb1 {[%clk 0:00:11]}  Ne5 {[%clk 0:00:21]} 37. Rxe5 {[%clk 0:00:10]}  fxe5 {[%clk 0:00:20]} 38. Qxe5 {[%clk 0:00:10]}  Qd2 {[%clk 0:00:19]} 39. h5 {[%clk 0:00:10]}  Qh6 {[%clk 0:00:12]} 40. hxg6 {[%clk 0:00:10]}  Qxg6 {[%clk 0:00:12]} 41. Qe3 {[%clk 0:00:08]}  Kf8 {[%clk 0:00:11]} 42. Qxc5+ {[%clk 0:00:07]}  Rd6 {[%clk 0:00:08]} 43. Rg1 {[%clk 0:00:04]}  Qf6 {[%clk 0:00:06]} 44. Qc8+ {[%clk 0:00:04]}  Rd8 {[%clk 0:00:05]} 45. Qc5+ {[%clk 0:00:04]}  Rd6 {[%clk 0:00:05]} 46. Re1 {[%clk 0:00:05]}  Kg7 {[%clk 0:00:05]} 47. Qe3 {[%clk 0:00:05]}  Kf8 {[%clk 0:00:04]} 48. Qe5 {[%clk 0:00:05]}  Qh6 {[%clk 0:00:04]} 49. Ka2 {[%clk 0:00:04]}  Rf6 {[%clk 0:00:03]} 50. Qe7+ {[%clk 0:00:04]}  Kg7 {[%clk 0:00:03]} 51. Rg1+ {[%clk 0:00:05]}  Rg6 {[%clk 0:00:04]} 52. Qe5+ {[%clk 0:00:05]}  Kh7 {[%clk 0:00:04]} 53. Rxg6 {[%clk 0:00:04]}  Qxg6 {[%clk 0:00:04]} 54. Qc3 {[%clk 0:00:04]}  Qe4 {[%clk 0:00:04]} 55. Qd2 {[%clk 0:00:04]}  Kg6 {[%clk 0:00:05]} 56. Qc3 {[%clk 0:00:02]}  f5 {[%clk 0:00:04]} 57. d6 {[%clk 0:00:03]}  Qc6 {[%clk 0:00:05]} 58. Qd4 {[%clk 0:00:02]}  Qd7 {[%clk 0:00:04]} 59. c5 {[%clk 0:00:03]}  Kg5 {[%clk 0:00:03]} 60. Qd5 {[%clk 0:00:03]}  Kg4 {[%clk 0:00:03]} 61. c6 {[%clk 0:00:04]}  Qe8 {[%clk 0:00:03]} 62. d7 {[%clk 0:00:04]}  Qe7 {[%clk 0:00:03]} 63. d8=Q {[%clk 0:00:04]}  Qxd8 {[%clk 0:00:03]} 64. Qxd8 {[%clk 0:00:05]}  f4 {[%clk 0:00:03]} 65. c7 {[%clk 0:00:05]} 1-0


[Site "https://www.chess.com"]

[Event "Titled Tuesday Blitz February 22 Early 2022"]
[White "Dreev, Aleksey"]
[Black "Talibov, Shiroghlan"]
[WhiteFideId "4100107"]
[BlackFideId "13429078"]
[WhiteElo "2636"]
[BlackElo "2070"]
[Result "0-1"]
[Round "07"]
[TimeControl "180+1"]
[Date "2022.02.22"]
[WhiteClock "0:00:09"]
[BlackClock "0:00:18"]

1. d4 {[%clk 0:03:00]}  g6 {[%clk 0:02:59]} 2. e4 {[%clk 0:02:59]}  Bg7 {[%clk 0:02:57]} 3. Nf3 {[%clk 0:02:57]}  c6 {[%clk 0:02:57]} 4. c4 {[%clk 0:02:56]}  d5 {[%clk 0:02:57]} 5. exd5 {[%clk 0:02:53]}  cxd5 {[%clk 0:02:57]} 6. cxd5 {[%clk 0:02:50]}  Nf6 {[%clk 0:02:58]} 7. Bb5+ {[%clk 0:02:48]}  Bd7 {[%clk 0:02:57]} 8. Bc4 {[%clk 0:02:48]}  O-O {[%clk 0:02:56]} 9. Nc3 {[%clk 0:02:48]}  Bg4 {[%clk 0:02:54]} 10. h3 {[%clk 0:02:47]}  Bf5 {[%clk 0:02:53]} 11. O-O {[%clk 0:02:46]}  Nbd7 {[%clk 0:02:53]} 12. Bg5 {[%clk 0:02:41]}  Nb6 {[%clk 0:02:50]} 13. Bxf6 {[%clk 0:02:41]}  Nxc4 {[%clk 0:02:45]} 14. Bxg7 {[%clk 0:02:41]}  Kxg7 {[%clk 0:02:46]} 15. Qb3 {[%clk 0:02:37]}  Nb6 {[%clk 0:02:45]} 16. Rfe1 {[%clk 0:02:37]}  Bd3 {[%clk 0:02:40]} 17. Ne5 {[%clk 0:02:34]}  Ba6 {[%clk 0:02:38]} 18. Re3 {[%clk 0:01:40]}  Qd6 {[%clk 0:02:35]} 19. Rae1 {[%clk 0:01:39]}  Rad8 {[%clk 0:02:35]} 20. a4 {[%clk 0:01:37]}  Nxd5 {[%clk 0:02:31]} 21. Rf3 {[%clk 0:01:17]}  e6 {[%clk 0:02:27]} 22. Ne4 {[%clk 0:01:01]}  Qb4 {[%clk 0:02:24]} 23. Qd1 {[%clk 0:00:59]}  f6 {[%clk 0:02:17]} 24. Nc5 {[%clk 0:00:56]}  Nc7 {[%clk 0:02:07]} 25. Ned7 {[%clk 0:00:33]}  Rf7 {[%clk 0:02:05]} 26. Rxe6 {[%clk 0:00:32]}  Rdxd7 {[%clk 0:01:58]} 27. Nxd7 {[%clk 0:00:31]}  Rxd7 {[%clk 0:01:59]} 28. Rexf6 {[%clk 0:00:30]}  Nd5 {[%clk 0:00:29]} 29. Re6 {[%clk 0:00:26]}  Qxb2 {[%clk 0:00:28]} 30. Kh2 {[%clk 0:00:21]}  Nc7 {[%clk 0:00:25]} 31. Re4 {[%clk 0:00:19]}  Qb4 {[%clk 0:00:25]} 32. Qc1 {[%clk 0:00:16]}  Qd6+ {[%clk 0:00:25]} 33. g3 {[%clk 0:00:14]}  Ne6 {[%clk 0:00:24]} 34. Qb2 {[%clk 0:00:11]}  Qd5 {[%clk 0:00:23]} 35. Rfe3 {[%clk 0:00:11]}  Ng5 {[%clk 0:00:21]} 36. Rf4 {[%clk 0:00:10]}  Bf1 {[%clk 0:00:18]} 37. h4 {[%clk 0:00:09]}  Qg2# {[%clk 0:00:18]} 0-1


[Site "https://www.chess.com"]

[Event "Titled Tuesday Blitz February 22 Early 2022"]
[White "Fakhretdinova, Margarita"]
[Black "Shton, Roman"]
[WhiteFideId "24103667"]
[BlackFideId "14137461"]
[WhiteElo "2216"]
[BlackElo "2038"]
[Result "0-1"]
[Round "07"]
[TimeControl "180+1"]
[Date "2022.02.22"]
[WhiteClock "0:00:01"]
[BlackClock "0:01:02"]

1. e4 {[%clk 0:03:00]}  Nf6 {[%clk 0:02:57]} 2. e5 {[%clk 0:02:59]}  Nd5 {[%clk 0:02:56]} 3. Nf3 {[%clk 0:02:59]}  d6 {[%clk 0:02:56]} 4. d4 {[%clk 0:02:55]}  g6 {[%clk 0:02:56]} 5. Bc4 {[%clk 0:02:54]}  Nb6 {[%clk 0:02:56]} 6. Bb3 {[%clk 0:02:54]}  Bg7 {[%clk 0:02:57]} 7. a4 {[%clk 0:02:46]}  a5 {[%clk 0:02:55]} 8. Qe2 {[%clk 0:02:39]}  O-O {[%clk 0:02:54]} 9. h4 {[%clk 0:02:33]}  Bg4 {[%clk 0:02:54]} 10. Bf4 {[%clk 0:02:21]}  Nc6 {[%clk 0:02:52]} 11. c3 {[%clk 0:01:58]}  dxe5 {[%clk 0:02:49]} 12. dxe5 {[%clk 0:01:54]}  Nd5 {[%clk 0:02:44]} 13. Bg3 {[%clk 0:01:49]}  h5 {[%clk 0:02:40]} 14. Nbd2 {[%clk 0:01:41]}  e6 {[%clk 0:02:33]} 15. Qe4 {[%clk 0:01:29]}  Bf5 {[%clk 0:02:25]} 16. Qf4 {[%clk 0:01:23]}  Nxf4 {[%clk 0:02:19]} 17. Bxf4 {[%clk 0:01:13]}  Bd3 {[%clk 0:02:12]} 18. O-O-O {[%clk 0:01:10]}  Qe7 {[%clk 0:02:12]} 19. Bg5 {[%clk 0:01:01]}  f6 {[%clk 0:02:12]} 20. exf6 {[%clk 0:00:57]}  Bxf6 {[%clk 0:02:13]} 21. Rhe1 {[%clk 0:00:56]}  Bf5 {[%clk 0:02:06]} 22. Ne4 {[%clk 0:00:51]}  Bxg5+ {[%clk 0:01:54]} 23. Nexg5 {[%clk 0:00:52]}  Nd8 {[%clk 0:01:41]} 24. Ne5 {[%clk 0:00:27]}  Qc5 {[%clk 0:01:38]} 25. Nd7 {[%clk 0:00:07]}  Qxf2 {[%clk 0:01:38]} 26. Nxf8 {[%clk 0:00:08]}  Qf4+ {[%clk 0:01:37]} 27. Rd2 {[%clk 0:00:06]}  Kxf8 {[%clk 0:01:37]} 28. Kd1 {[%clk 0:00:04]}  Nc6 {[%clk 0:01:28]} 29. Bxe6 {[%clk 0:00:02]}  Bg4+ {[%clk 0:01:21]} 30. Bxg4 {[%clk 0:00:01]}  Qxg4+ {[%clk 0:01:22]} 31. Kc1 {[%clk 0:00:01]}  Kg7 {[%clk 0:01:18]} 32. Rf2 {[%clk 0:00:01]}  Rf8 {[%clk 0:01:13]} 33. Rfe2 {[%clk 0:00:01]}  Qxh4 {[%clk 0:01:11]} 34. Ne6+ {[%clk 0:00:02]}  Kg8 {[%clk 0:01:06]} 35. Nxf8 {[%clk 0:00:02]}  Kxf8 {[%clk 0:01:05]} 36. Re8+ {[%clk 0:00:02]}  Kf7 {[%clk 0:01:05]} 37. R8e2 {[%clk 0:00:03]}  Qxa4 {[%clk 0:01:03]} 38. Rf1+ {[%clk 0:00:02]}  Kg7 {[%clk 0:01:03]} 39. Rfe1 {[%clk 0:00:02]}  Qc4 {[%clk 0:01:02]} 40. Re4 {[%clk 0:00:01]}  Qd3 {[%clk 0:01:01]} 41. R4e3 {[%clk 0:00:01]}  Qc4 {[%clk 0:01:01]} 42. Re4 {[%clk 0:00:01]}  Qa2 {[%clk 0:01:02]} 43. R4e2 {[%clk 0:00:01]}  a4 {[%clk 0:01:02]} 0-1


[Site "https://www.chess.com"]

[Event "Titled Tuesday Blitz February 22 Early 2022"]
[White "Farmani Anosheh, Armin"]
[Black "Dovbnia, Nikita"]
[WhiteFideId "24613240"]
[BlackFideId "54104599"]
[WhiteElo "2289"]
[BlackElo "2111"]
[Result "1-0"]
[Round "07"]
[TimeControl "180+1"]
[Date "2022.02.22"]
[WhiteClock "0:02:36"]
[BlackClock "0:02:16"]

1. d4 {[%clk 0:03:00]}  Nf6 {[%clk 0:02:59]} 2. c4 {[%clk 0:03:01]}  e6 {[%clk 0:02:59]} 3. Nf3 {[%clk 0:03:01]}  d5 {[%clk 0:02:53]} 4. g3 {[%clk 0:03:01]}  Nbd7 {[%clk 0:02:51]} 5. Bg2 {[%clk 0:03:01]}  c6 {[%clk 0:02:49]} 6. Qc2 {[%clk 0:03:01]}  Be7 {[%clk 0:02:47]} 7. Nbd2 {[%clk 0:03:00]}  O-O {[%clk 0:02:48]} 8. O-O {[%clk 0:03:01]}  dxc4 {[%clk 0:02:49]} 9. Nxc4 {[%clk 0:03:01]}  c5 {[%clk 0:02:46]} 10. Rd1 {[%clk 0:02:52]}  b5 {[%clk 0:02:39]} 11. Nfe5 {[%clk 0:02:45]}  Rb8 {[%clk 0:02:26]} 12. Nc6 {[%clk 0:02:44]}  Qc7 {[%clk 0:02:18]} 13. Bf4 {[%clk 0:02:36]}  Bd6 {[%clk 0:02:15]} 14. Bxd6 {[%clk 0:02:36]}  Qxd6 {[%clk 0:02:16]} 15. Nxd6 {[%clk 0:02:36]} 1-0


[Site "https://www.chess.com"]

[Event "Titled Tuesday Blitz February 22 Early 2022"]
[White "Freitag, Manfred"]
[Black "Danaci, Ege"]
[WhiteFideId "1602004"]
[BlackFideId "34506748"]
[WhiteElo "2275"]
[BlackElo "1799"]
[Result "1-0"]
[Round "07"]
[TimeControl "180+1"]
[Date "2022.02.22"]
[WhiteClock "0:02:54"]
[BlackClock "0:02:31"]

1. e4 {[%clk 0:03:00]}  c6 {[%clk 0:02:58]} 2. d4 {[%clk 0:03:00]}  d5 {[%clk 0:02:58]} 3. e5 {[%clk 0:03:01]}  Bf5 {[%clk 0:02:56]} 4. h4 {[%clk 0:03:01]}  h5 {[%clk 0:02:56]} 5. Bd3 {[%clk 0:03:02]}  Bxd3 {[%clk 0:02:54]} 6. Qxd3 {[%clk 0:03:03]}  e6 {[%clk 0:02:54]} 7. Bg5 {[%clk 0:03:03]}  Qb6 {[%clk 0:02:49]} 8. Nd2 {[%clk 0:03:02]}  Qxb2 {[%clk 0:02:35]} 9. Rb1 {[%clk 0:02:59]}  Qxa2 {[%clk 0:02:34]} 10. Rxb7 {[%clk 0:02:57]}  Qa1+ {[%clk 0:02:32]} 11. Rb1 {[%clk 0:02:56]}  Qa6 {[%clk 0:02:31]} 12. Rxb8+ {[%clk 0:02:54]} 1-0


[Site "https://www.chess.com"]